bitfinex/quotes_ETHUSD_20230404
["timestamp","ask_amount","ask_price","bid_price","bid_amount"]
[1680567177029,0.003,1811.0,1810.8,0.37612]
[1680567177208,10.9537,1811.1,1810.8,0.92836]
[1680567177377,0.003,1811.1,1810.8,3.14214218]
[1680567177578,11.6499,1811.3,1810.8,3.5215824]
[1680567178839,11.6499,1811.3,1810.8,3.14814218]
[1680567179460,11.6499,1811.3,1810.8,3.70038218]
[1680567180421,11.6499,1811.3,1810.8,3.14814218]
[1680567182015,11.6529,1811.3,1810.8,3.69292447]
[1680567182230,11.6579,1811.3,1810.8,3.13868447]
[1680567182524,11.6579,1811.3,1810.8,3.69092447]
[1680567182711,11.6579,1811.3,1810.8,4.07167117]
[1680567183932,0.011,1811.3,1810.9,2.76602218]
[1680567184133,0.00830106,1811.4,1811.0,0.82825]
[1680567184431,0.00830106,1811.4,1811.0,3.59427218]
[1680567184582,0.00830106,1811.4,1811.0,3.8209095]
[1680567187954,0.00830106,1811.4,1811.0,0.50271732]
[1680567188128,0.00830106,1811.4,1811.0,0.22663732]
[1680567188474,0.43495317,1811.4,1811.0,0.22663732]
[1680567188878,7.245,1811.3,1811.0,0.22663732]
[1680567189078,7.84618,1811.2,1811.0,0.22663732]
[1680567189364,19.99150116,1811.2,1811.0,0.22663732]
[1680567189882,19.99150116,1811.2,1810.8,0.09654229]
[1680567190647,19.99150116,1811.2,1810.9,0.22411594]
[1680567190976,22.75752334,1811.2,1810.9,0.22411594]
[1680567191125,7.28809,1811.0,1810.9,0.22411594]
[1680567191331,8.08957106,1811.0,1810.9,0.22411594]
[1680567191528,8.08157106,1811.0,1810.9,0.22411594]
[1680567191780,8.08157106,1811.0,1810.8,0.09654229]
[1680567191990,8.32625711,1810.9,1810.8,0.09654229]
[1680567192180,8.88146711,1810.9,1810.8,0.09654229]
[1680567192870,8.32925711,1810.9,1810.8,0.09654229]
[1680567193470,8.05315711,1810.9,1810.8,0.09654229]
[1680567195446,8.33725711,1810.9,1810.8,0.09654229]
[1680567195660,8.32925711,1810.9,1810.8,0.09654229]
[1680567195983,11.65548929,1810.9,1810.8,0.09654229]
[1680567205849,5.804,1810.7,1810.6,0.04654229]
[1680567206054,7.256,1810.7,1810.6,0.04654229]
[1680567206251,7.53213,1810.7,1810.6,0.04654229]
[1680567206694,7.256,1810.7,1810.6,0.04654229]
[1680567206854,8.09615561,1810.7,1810.6,0.04654229]
[1680567207057,2.29215561,1810.7,1810.6,0.04654229]
[1680567207261,2.28915561,1810.7,1810.6,0.04654229]
[1680567207962,1.07015561,1810.7,1810.6,0.04654229]
[1680567208302,0.84015561,1810.7,1810.6,0.04654229]
[1680567208503,0.84015561,1810.7,1810.6,0.25302702]
[1680567209206,6.64415561,1810.7,1810.6,0.25302702]
[1680567209409,6.64715561,1810.7,1810.6,0.25302702]
[1680567209838,0.84315561,1810.7,1810.6,0.25302702]
[1680567209996,1.07015561,1810.7,1810.6,0.25302702]
[1680567211138,11.0778,1810.8,1810.6,0.25302702]
[1680567212662,0.003,1810.8,1810.6,0.25302702]
[1680567212964,23.11700106,1811.0,1810.6,0.25302702]
[1680567213164,23.39309106,1811.0,1810.6,0.25302702]
[1680567217209,23.40109106,1811.0,1810.6,0.25302702]
[1680567218608,23.39309106,1811.0,1810.6,0.25302702]
[1680567219915,23.40109106,1811.0,1810.6,0.25302702]
[1680567222484,23.95327106,1811.0,1810.6,0.25302702]
[1680567223100,23.40109106,1811.0,1810.6,0.25302702]
[1680567223428,23.39309106,1811.0,1810.6,0.25302702]
[1680567226573,26.71129324,1811.0,1810.6,0.25302702]
[1680567226778,0.27612,1810.8,1810.6,0.25302702]
[1680567226980,0.50613,1810.7,1810.6,0.25302702]
[1680567227188,6.8624,1810.7,1810.6,0.25302702]
[1680567227424,6.31313,1810.7,1810.6,0.25302702]
[1680567227924,7.27626922,1810.7,1810.6,0.25302702]
[1680567228218,9.03653922,1810.7,1810.6,0.25302702]
[1680567228425,9.03353808,1810.7,1810.6,0.25302702]
[1680567230938,8.20513808,1810.7,1810.6,0.25302702]
[1680567232023,6.99713808,1810.7,1810.6,0.25302702]
[1680567236528,7.27326808,1810.7,1810.6,0.25302702]
[1680567236707,7.28156914,1810.7,1810.6,0.25302702]
[1680567237751,7.28956914,1810.7,1810.6,0.25302702]
[1680567238745,7.28156914,1810.7,1810.6,0.25302702]
[1680567239850,7.00543914,1810.7,1810.6,0.25302702]
[1680567240008,7.28156914,1810.7,1810.6,0.25302702]
[1680567240536,7.83383914,1810.7,1810.6,0.25302702]
[1680567242646,9.04783914,1810.7,1810.6,0.25302702]
[1680567244188,8.49556914,1810.7,1810.6,0.25302702]
[1680567245082,8.50356914,1810.7,1810.6,0.25302702]
[1680567245435,7.00543914,1810.7,1810.6,0.25302702]
[1680567245636,7.27326808,1810.7,1810.6,0.25302702]
[1680567246268,6.99713808,1810.7,1810.6,0.25302702]
[1680567248684,1.19313808,1810.7,1810.6,0.25302702]
[1680567248893,0.27911,1810.9,1810.6,0.25302702]
[1680567249195,0.23,1810.8,1810.6,0.25302702]
[1680567249401,0.23,1810.9,1810.6,0.25302702]
[1680567249761,6.034,1810.9,1810.6,0.25302702]
[1680567250089,6.3131,1810.9,1810.6,0.25302702]
[1680567250396,6.30914219,1810.9,1810.6,0.25302702]
[1680567250695,6.31714219,1810.9,1810.6,0.25302702]
[1680567250990,6.30914219,1810.9,1810.6,0.25302702]
[1680567251661,6.03304219,1810.9,1810.6,0.25302702]
[1680567252186,6.30915219,1810.9,1810.6,0.25302702]
[1680567253479,6.03304219,1810.9,1810.6,0.25302702]
[1680567254579,6.30914219,1810.9,1810.6,0.25302702]
[1680567254948,6.03304219,1810.9,1810.6,0.25302702]
[1680567256897,0.22904219,1810.9,1810.6,0.25302702]
[1680567257102,6.03004219,1810.9,1810.6,0.25302702]
[1680567257307,6.03304219,1810.9,1810.6,0.25302702]
[1680567257884,0.22904219,1810.9,1810.6,0.25302702]
[1680567258086,0.22604219,1810.9,1810.6,0.25302702]
[1680567258395,17.5808,1811.0,1810.6,0.25302702]
[1680567259096,23.1087,1811.0,1810.6,0.25302702]
[1680567259279,23.38479,1811.0,1810.6,0.25302702]
[1680567259801,23.93697,1811.0,1810.6,0.25302702]
[1680567259953,0.23,1810.9,1810.6,0.25302702]
[1680567260294,0.50611,1810.9,1810.6,0.25302702]
[1680567260857,0.23,1810.9,1810.6,0.25302702]
[1680567261088,6.3101,1810.9,1810.6,0.25302702]
[1680567261271,6.037,1810.9,1810.6,0.25302702]
[1680567262253,6.3131,1810.9,1810.6,0.25302702]
[1680567263210,6.037,1810.9,1810.6,0.25302702]
[1680567263951,6.037,1810.9,1810.6,0.25502702]
[1680567264126,0.6037,1810.8,1810.6,0.25302702]
[1680567264325,0.6037,1810.8,1810.6,0.25702702]
[1680567264742,0.6037,1810.8,1810.6,0.25502702]
[1680567265561,0.6037,1810.8,1810.6,0.25302702]
[1680567266009,0.06037,1810.7,1810.6,0.25302702]
[1680567266214,0.06037,1810.7,1810.6,0.25502702]
[1680567266550,0.06037,1810.7,1810.6,0.25302702]
[1680567269683,0.06037,1810.7,1810.6,0.25502702]
[1680567269998,0.6037,1810.8,1810.6,0.25502702]
[1680567270482,6.037,1810.9,1810.6,0.25502702]
[1680567270783,6.037,1810.9,1810.6,0.25302702]
[1680567271651,0.003,1810.9,1810.6,0.52917702]
[1680567271984,23.11700106,1811.0,1810.6,0.52917702]
[1680567272486,23.11700106,1811.0,1810.6,0.25302702]
[1680567272979,23.11700106,1811.0,1810.6,1.11731208]
[1680567273168,23.11700106,1811.0,1810.6,1.11931208]
[1680567273370,23.11700106,1811.0,1810.6,1.12131208]
[1680567273541,23.11350996,1811.0,1810.6,1.39745208]
[1680567273741,23.11350996,1811.0,1810.6,1.12331208]
[1680567273980,23.11350996,1811.0,1810.6,0.25702702]
[1680567274147,23.11350996,1811.0,1810.6,0.25302702]
[1680567274353,23.11350996,1811.0,1810.6,1.12131208]
[1680567274578,23.11350996,1811.0,1810.6,1.12331208]
[1680567274893,23.11350996,1811.0,1810.6,0.25902702]
[1680567275091,23.11350996,1811.0,1810.6,0.25702702]
[1680567275254,23.11350996,1811.0,1810.6,0.53317702]
[1680567275584,23.11350996,1811.0,1810.6,0.25302702]
[1680567277374,23.06350996,1811.0,1810.6,0.25302702]
[1680567279455,23.33959996,1811.0,1810.6,0.25302702]
[1680567279798,0.23,1810.9,1810.6,0.25302702]
[1680567280098,0.50611,1810.9,1810.6,0.25302702]
[1680567280283,5.804,1810.8,1810.6,0.25302702]
[1680567280480,0.5804,1810.7,1810.6,0.25302702]
[1680567281280,6.3844,1810.7,1810.6,0.25302702]
[1680567281531,6.89353,1810.7,1810.6,0.25302702]
[1680567284222,6.6174,1810.7,1810.6,0.25302702]
[1680567293286,0.8134,1810.7,1810.6,0.25302702]
[1680567293625,0.23,1810.7,1810.6,0.25302702]
[1680567293830,0.23830106,1810.8,1810.6,0.25302702]
[1680567298028,6.08311,1810.9,1810.6,0.25302702]
[1680567298546,0.02284679,1810.8,1810.3,0.87161812]
[1680567298839,3.6212651,1810.5,1810.0,0.108]
[1680567298987,1.374,1810.1,1810.0,0.1]
[1680567299190,5.56640574,1810.0,1809.8,0.1]
[1680567299429,10.81941631,1809.9,1809.8,0.1]
[1680567299610,11.97783631,1809.9,1809.8,0.1]
[1680567300007,14.76670528,1809.9,1809.8,0.1]
[1680567300215,14.77470528,1809.9,1809.8,0.1]
[1680567300806,15.46270528,1809.9,1809.8,0.1]
[1680567301458,12.6966831,1809.9,1809.8,0.1]
[1680567302149,11.3206831,1809.9,1809.8,0.1]
[1680567302467,11.88605745,1809.9,1809.8,0.1]
[1680567303058,14.65207963,1809.9,1809.8,0.1]
[1680567303357,11.88605745,1809.9,1809.8,0.1]
[1680567303511,8.88605745,1809.9,1809.8,0.1]
[1680567305428,0.28725,1809.9,1809.8,0.1]
[1680567305611,0.27625,1809.9,1809.8,0.1]
[1680567306409,11.58569,1810.0,1809.8,0.1]
[1680567306640,0.27625,1809.9,1809.8,0.32446296]
[1680567307122,11.30945,1810.0,1809.8,0.32446296]
[1680567307455,11.30944,1810.0,1809.8,0.32446296]
[1680567307877,0.011,1810.0,1809.8,0.32446296]
[1680567308026,0.2762,1810.3,1809.8,0.32446296]
[1680567308423,0.2842,1810.3,1809.8,0.32446296]
[1680567308640,1.489506,1810.3,1809.8,0.32446296]
[1680567309469,1.481506,1810.3,1809.8,0.32446296]
[1680567309649,1.489506,1810.3,1809.8,0.32446296]
[1680567309852,2.041896,1810.3,1809.8,0.32446296]
[1680567313199,1.489506,1810.3,1809.8,0.32446296]
[1680567313511,0.008,1810.3,1810.0,1.211]
[1680567313654,0.003,1810.4,1810.3,1.0]
[1680567313655,0.008,1810.4,1810.3,1.0]
[1680567313851,0.008,1810.8,1810.3,4.04221218]
[1680567314081,0.008,1810.8,1810.4,0.40422122]
[1680567314656,11.7036,1810.9,1810.5,0.22213644]
[1680567314995,11.7036,1810.9,1810.5,0.49829644]
[1680567315224,0.011,1810.9,1810.8,3.14384]
[1680567315429,0.11000001,1811.1,1810.8,6.32424618]
[1680567315607,0.11000001,1811.1,1811.0,0.27609]
[1680567315794,0.11000001,1811.1,1811.0,0.82827]
[1680567316815,0.11000001,1811.1,1811.0,4.80529218]
[1680567317133,1e-08,1811.1,1811.0,4.80529218]
[1680567317280,1e-08,1811.1,1811.0,5.4964584]
[1680567323134,1e-08,1811.1,1811.0,5.6244584]
[1680567323337,1e-08,1811.1,1811.0,8.6244584]
[1680567326605,0.441984,1811.2,1811.1,1.0]
[1680567326810,0.441984,1811.2,1811.1,6.90954218]
[1680567327026,0.441984,1811.2,1811.1,8.00364234]
[1680567327602,0.441984,1811.2,1811.1,8.19129172]
[1680567332634,0.441984,1811.2,1811.1,8.24299748]
[1680567334028,0.441984,1811.2,1811.1,8.24499748]
[1680567335131,0.441984,1811.2,1811.1,8.24299748]
[1680567336678,0.441984,1811.2,1811.1,8.37099748]
[1680567336817,0.441984,1811.2,1811.1,14.17499748]
[1680567337172,0.441984,1811.2,1811.1,17.17499748]
[1680567339620,0.441984,1811.2,1811.1,17.24066895]
[1680567340265,0.441984,1811.2,1811.1,11.43666895]
[1680567340461,0.441984,1811.2,1811.1,11.43866895]
[1680567341466,0.11000001,1811.4,1811.1,11.43866895]
[1680567341467,0.11000001,1811.4,1811.3,1.0]
[1680567341632,0.11000001,1811.4,1811.3,3.59414218]
[1680567341817,0.11000001,1811.4,1811.3,0.27604]
[1680567342018,0.11000001,1811.4,1811.3,0.82812]
[1680567342675,0.11000001,1811.4,1811.3,1.13215759]
[1680567345759,0.11000001,1811.4,1811.3,0.30403759]
[1680567345965,0.11000001,1811.4,1811.3,0.58007759]
[1680567346559,0.11000001,1811.4,1811.3,0.27604]
[1680567346763,0.11000001,1811.4,1811.2,0.82815]
[1680567347628,0.11000001,1811.4,1811.1,0.27607]
[1680567352442,0.10654293,1811.4,1811.1,0.27607]
[1680567354680,0.10654293,1811.4,1811.0,0.55217]
[1680567354857,0.10654293,1811.4,1811.1,0.27607]
[1680567356754,0.10654293,1811.4,1811.1,0.82822]
[1680567360509,0.17738919,1811.4,1811.1,0.82822]
[1680567365619,0.10654293,1811.4,1811.1,0.82822]
[1680567371326,0.10654293,1811.4,1811.1,1.93252]
[1680567372923,0.10654293,1811.4,1811.2,2.76602218]
[1680567373233,0.10654293,1811.4,1811.3,0.27604]
[1680567373593,0.10654293,1811.4,1811.3,0.82812]
[1680567373794,0.10654293,1811.4,1811.3,1.29795322]
[1680567374126,0.10427284,1811.4,1811.3,1.29795322]
[1680567377949,0.10427284,1811.4,1811.3,1.29795322]
[1680567383425,0.10427284,1811.4,1811.3,4.0639754]
[1680567386570,0.10427284,1811.4,1811.3,4.0679754]
[1680567386792,0.10427284,1811.4,1811.3,4.0639754]
[1680567387658,0.10427284,1811.4,1811.3,4.0699754]
[1680567389373,0.10427284,1811.4,1811.3,4.0659754]
[1680567389545,0.10427284,1811.4,1811.3,4.0639754]
[1680567389728,0.10427284,1811.4,1811.3,4.0699754]
[1680567394501,0.10427284,1811.4,1811.3,4.0639754]
[1680567395903,0.10427284,1811.4,1811.3,4.0699754]
[1680567397167,0.10035279,1811.4,1811.3,4.0639754]
[1680567414489,0.10035279,1811.4,1811.3,3.59414218]
[1680567414705,0.10035279,1811.4,1811.3,0.27604]
[1680567417238,0.10035279,1811.4,1811.3,0.82812]
[1680567418034,0.09690655,1811.4,1811.3,0.82812]
[1680567421011,0.09690655,1811.4,1811.3,0.82595221]
[1680567422747,0.09690655,1811.4,1811.3,0.27387221]
[1680567423800,0.09690655,1811.4,1811.2,0.27605]
[1680567424541,0.09690655,1811.4,1811.2,0.82817]
[1680567427371,1.371,1811.3,1811.0,0.86961812]
[1680567427671,0.687,1811.1,1811.0,1.14370812]
[1680567427831,0.687,1811.1,1811.0,1.69588812]
[1680567428025,0.687,1811.3,1811.0,4.4619103]
[1680567430549,0.687,1811.3,1811.0,3.9097303]
[1680567430765,0.83409066,1811.3,1811.0,0.86761812]
[1680567430971,0.83409066,1811.3,1810.9,5.94070812]
[1680567431135,0.83409066,1811.3,1810.9,0.86761812]
[1680567431136,1.11013066,1811.3,1810.9,0.86761812]
[1680567431476,0.11101307,1811.2,1810.9,1.14371812]
[1680567431624,0.11101307,1811.2,1810.9,0.2761]
[1680567431821,0.11101307,1811.2,1810.9,0.86761812]
[1680567432057,0.79801307,1811.2,1810.9,1.14371812]
[1680567432869,0.79801307,1811.2,1810.9,0.2761]
[1680567435063,0.07980131,1811.1,1810.9,0.2761]
[1680567435236,0.07980131,1811.1,1810.9,0.82831]
[1680567436280,0.687,1811.2,1810.9,0.82831]
[1680567441146,0.14709066,1811.3,1810.9,0.82831]
[1680567442105,0.14709066,1811.3,1810.9,3.59433218]
[1680567442365,12.33395334,1811.4,1810.9,3.59433218]
[1680567452461,0.10165698,1811.4,1811.0,2.76602218]
[1680567452677,0.10165698,1811.4,1811.1,0.86761812]
[1680567452678,0.09365698,1811.4,1811.1,0.86761812]
[1680567452877,0.09365698,1811.4,1811.3,0.27604]
[1680567453672,0.09365698,1811.4,1811.3,0.82812]
[1680567454115,0.09365698,1811.4,1811.2,0.36881181]
[1680567454413,0.09365698,1811.4,1811.2,0.36281181]
[1680567457823,0.09365698,1811.4,1811.2,0.91493181]
[1680567460426,0.09365698,1811.4,1811.3,0.09149318]
[1680567460734,0.09365698,1811.4,1811.3,0.82812]
[1680567475884,0.09139191,1811.4,1811.3,0.82812]
[1680567481986,0.09139191,1811.4,1811.3,0.8252114]
[1680567483643,0.61618883,1811.4,1811.3,0.8252114]
[1680567486944,0.61618883,1811.4,1811.2,0.27605]
[1680567487144,0.67780771,1811.4,1811.2,0.27605]
[1680567490323,0.67780771,1811.4,1811.2,0.82817]
[1680567493559,0.67780771,1811.4,1811.2,1.69578812]
[1680567497810,0.67780771,1811.4,1811.2,2.84902514]
[1680567502666,0.61618883,1811.4,1811.2,2.84902514]
[1680567502972,0.61374665,1811.4,1811.2,2.84902514]
[1680567505667,0.61374665,1811.4,1811.2,1.69578812]
[1680567508265,0.61374665,1811.4,1811.3,0.86761812]
[1680567508587,0.61374665,1811.4,1811.3,1.14365812]
[1680567509855,0.61374665,1811.4,1811.3,0.27604]
[1680567513467,0.61374665,1811.4,1811.3,0.82812]
[1680567514072,0.61374665,1811.4,1811.3,0.27604]
[1680567515428,0.61374665,1811.4,1811.3,0.82812]
[1680567516453,0.61374665,1811.4,1811.3,1.10811281]
[1680567517374,0.61374665,1811.4,1811.3,3.12896795]
[1680567517524,0.61374665,1811.4,1811.3,4.74175311]
[1680567517874,0.08894973,1811.4,1811.3,5.89499013]
[1680567518071,0.08894973,1811.4,1811.3,5.89699013]
[1680567518423,0.08894973,1811.4,1811.3,4.74375311]
[1680567518628,0.08894973,1811.4,1811.3,5.89499013]
[1680567518854,0.08894973,1811.4,1811.3,5.89699013]
[1680567520602,0.08894973,1811.4,1811.3,1.42565093]
[1680567520805,0.08894973,1811.4,1811.3,0.86761812]
[1680567521321,0.08894973,1811.4,1811.3,0.27604]
[1680567521496,0.08894973,1811.4,1811.2,1.42772812]
[1680567521497,0.08894973,1811.4,1811.2,0.86761812]
[1680567521807,0.79879652,1811.4,1811.1,0.86761812]
[1680567522003,0.07987965,1811.3,1811.0,2.29693514]
[1680567522350,0.79879652,1811.4,1811.0,5.06295732]
[1680567522609,0.08894973,1811.4,1811.1,0.86761812]
[1680567522758,0.08894973,1811.4,1811.2,0.82818]
[1680567523856,0.08569188,1811.4,1811.2,0.82818]
[1680567524097,0.08569188,1811.4,1811.2,0.99775981]
[1680567528163,0.08569188,1811.4,1811.2,0.44563981]
[1680567528984,0.08569188,1811.4,1811.2,0.27606]
[1680567530536,0.08569188,1811.4,1811.2,0.82818]
[1680567530895,0.08569188,1811.4,1811.2,3.59420218]
[1680567531101,0.08569188,1811.4,1811.2,4.4618203]
[1680567531727,0.08569188,1811.4,1811.3,2.76602218]
[1680567531911,0.08569188,1811.4,1811.3,3.48824421]
[1680567532233,0.08569188,1811.4,1811.3,3.21220421]
[1680567532587,0.08569188,1811.4,1811.3,3.48824421]
[1680567533225,0.08569188,1811.4,1811.3,4.04032421]
[1680567534934,0.08569188,1811.4,1811.3,3.48824421]
[1680567535144,0.08569188,1811.4,1811.3,4.04032421]
[1680567540125,0.08569188,1811.4,1811.3,3.48824421]
[1680567541744,0.08569188,1811.4,1811.3,4.04632421]
[1680567541944,0.08569188,1811.4,1811.3,6.19517935]
[1680567542243,0.08569188,1811.4,1811.3,6.05910802]
[1680567542611,0.08569188,1811.4,1811.3,4.359791]
[1680567543286,0.08569188,1811.4,1811.3,4.911871]
[1680567544526,0.08569188,1811.4,1811.3,1.14758679]
[1680567544844,0.62575955,1811.4,1811.3,0.28204]
[1680567545339,0.62575955,1811.4,1811.3,0.27604]
[1680567545548,0.62575955,1811.4,1811.3,0.82812]
[1680567545690,0.62575955,1811.4,1811.3,0.83212]
[1680567545894,0.62302447,1811.4,1811.3,0.82812]
[1680567548011,0.62302447,1811.4,1811.3,0.27604]
[1680567548545,0.62302447,1811.4,1811.3,0.82812]
[1680567549342,0.62302447,1811.4,1811.3,0.27604]
[1680567552434,0.62302447,1811.4,1811.3,4.45968897]
[1680567552634,0.62302447,1811.4,1811.3,5.62768057]
[1680567557229,17.8329,1811.9,1811.3,6.78091759]
[1680567557230,0.003,1811.9,1811.3,6.78091759]
[1680567557431,0.11000001,1812.0,1811.7,0.687]
[1680567557575,0.11000001,1812.0,1811.8,4.76648218]
[1680567557775,0.11000001,1812.0,1811.9,2.76602218]
[1680567558074,0.11000001,1812.0,1811.9,5.27277859]
[1680567558277,0.11000001,1812.0,1811.9,7.41387218]
[1680567558486,0.11000001,1812.0,1811.9,8.42790704]
[1680567562125,0.11000001,1812.0,1811.9,7.74190704]
[1680567565184,0.11000001,1812.0,1811.9,7.73790704]
[1680567566028,0.11000001,1812.0,1811.9,7.74190704]
[1680567566534,0.11000001,1812.0,1811.9,8.42590704]
[1680567567287,0.11000001,1812.0,1811.9,7.74190704]
[1680567568714,0.11000001,1812.0,1811.9,7.73790704]
[1680567569023,0.11000001,1812.0,1811.9,8.42490704]
[1680567569214,0.11000001,1812.0,1811.9,8.42890704]
[1680567577914,0.11000001,1812.0,1811.9,8.42490704]
[1680567578108,0.11000001,1812.0,1811.9,8.42890704]
[1680567579311,0.11000001,1812.0,1811.9,14.91990704]
[1680567581950,0.10614547,1812.0,1811.9,14.91390704]
[1680567585172,0.10614547,1812.0,1811.9,14.22690704]
[1680567585351,0.10614547,1812.0,1811.9,19.41890704]
[1680567585530,0.10614547,1812.0,1811.9,20.64890704]
[1680567585925,0.00014547,1812.0,1811.9,21.32990704]
[1680567586171,0.00014547,1812.0,1811.9,24.64490704]
[1680567586577,0.00014547,1812.0,1811.9,23.81705704]
[1680567586773,0.11000001,1812.2,1812.1,5.804]
[1680567586975,0.11000001,1812.2,1812.1,18.13859218]
[1680567587150,0.11000001,1812.2,1812.1,18.26659218]
[1680567587585,0.11000001,1812.2,1812.1,22.87619218]
[1680567589688,0.11000001,1812.2,1812.1,23.87619218]
[1680567590413,0.11000001,1812.2,1812.1,27.19119218]
[1680567591585,0.02385178,1812.3,1812.2,0.5]
[1680567591769,0.02385178,1812.3,1812.2,22.0990014]
[1680567591968,0.02385178,1812.3,1812.2,22.2270014]
[1680567592462,0.02385178,1812.3,1812.2,22.9140014]
[1680567593317,0.00085178,1812.3,1812.2,26.2290014]
[1680567593474,0.00085178,1812.3,1812.2,36.1014014]
[1680567593668,1e-08,1812.4,1812.3,10.619]
[1680567593897,1e-08,1812.4,1812.3,25.86240232]
[1680567594108,1e-08,1812.4,1812.3,29.22040232]
[1680567597687,5.22080001,1813.0,1812.3,29.22040232]
[1680567597688,2e-08,1812.5,1812.3,28.03340232]
[1680567597892,2e-08,1812.5,1812.4,20.47042218]
[1680567598092,2e-08,1812.5,1812.4,27.77799241]
[1680567599729,0.06000003,1813.0,1812.4,27.78399241]
[1680567600021,0.06000003,1813.0,1812.9,1.9306]
[1680567600234,0.06000003,1813.0,1812.9,4.69662218]
[1680567601445,0.06000003,1813.0,1812.9,5.1818844]
[1680567601618,0.06000003,1813.0,1812.9,8.3138844]
[1680567601821,0.06000003,1813.0,1812.9,8.3078844]
[1680567602120,0.06000003,1813.0,1812.9,8.3138844]
[1680567603142,0.06000003,1813.0,1812.9,9.0008844]
[1680567603437,0.06000003,1813.0,1812.9,20.4878844]
[1680567603438,3e-08,1813.0,1812.9,20.4878844]
[1680567603637,3e-08,1813.0,1812.9,21.27236518]
[1680567604523,0.06120005,1813.5,1813.4,5.804]
[1680567604702,1.186,1814.4,1813.5,1.92994]
[1680567604703,5.09660001,1814.1,1813.5,1.92994]
[1680567604903,5.10760001,1814.1,1813.5,5.37996218]
[1680567605101,5.10760001,1814.1,1813.5,8.50796218]
[1680567605314,5.10760001,1814.1,1813.5,10.3085584]
[1680567606910,5.10760001,1814.1,1813.5,16.1125584]
[1680567607156,5.10760001,1814.1,1813.5,15.6585584]
[1680567607556,5.10760001,1814.1,1813.5,16.21890974]
[1680567608461,0.12100001,1814.1,1813.5,20.74690974]
[1680567608625,0.11000001,1814.1,1813.5,20.74690974]
[1680567611440,0.11000001,1814.1,1813.5,20.74890974]
[1680567612913,0.11000001,1814.1,1813.5,11.62790974]
[1680567613111,0.11000001,1814.1,1813.5,10.18490974]
[1680567613714,1.32600001,1814.1,1813.5,10.18490974]
[1680567613940,12.81780001,1814.1,1813.5,10.18490974]
[1680567614141,12.82080001,1814.1,1813.5,10.18490974]
[1680567617424,12.82080001,1814.1,1813.5,19.30390974]
[1680567617767,12.82080001,1814.1,1813.5,19.53390974]
[1680567618833,12.82080001,1814.1,1813.5,16.21890974]
[1680567619679,12.82080001,1814.1,1813.5,16.22090974]
[1680567619827,12.82080001,1814.1,1813.5,19.67418487]
[1680567620616,0.01,1814.5,1814.2,7.1449744]
[1680567620758,0.55114201,1814.7,1814.4,3.04159218]
[1680567620959,0.55114201,1814.7,1814.6,2.76602218]
[1680567621170,0.55114201,1814.7,1814.6,7.7268344]
[1680567621411,0.55114201,1814.7,1814.6,12.0678344]
[1680567621570,0.55114201,1814.7,1814.6,8.0994144]
[1680567621922,0.55114201,1814.7,1814.6,7.69481218]
[1680567622089,0.55114201,1814.7,1814.6,3.59264218]
[1680567623312,0.55114201,1814.7,1814.6,4.69481218]
[1680567624605,1.7899888,1814.7,1814.5,0.002]
[1680567624760,1.216,1814.6,1814.5,0.27554]
[1680567625477,1.216,1814.6,1814.5,0.82665]
[1680567625678,1.216,1814.6,1814.5,3.59267218]
[1680567625984,1.216,1814.6,1814.5,3.04156218]
[1680567625985,1.224,1814.6,1814.5,3.04156218]
[1680567627418,1.224,1814.6,1814.5,2.76602218]
[1680567627584,1.224,1814.6,1814.5,3.04157218]
[1680567628124,0.008,1814.6,1814.5,3.04157218]
[1680567628911,0.008,1814.6,1814.5,2.76602218]
[1680567629125,13.92312117,1814.7,1814.5,2.76602218]
[1680567629314,13.92312117,1814.7,1814.6,2.76602218]
[1680567629522,2.32692117,1814.7,1814.6,2.76602218]
[1680567629691,2.31692117,1814.7,1814.6,2.76602218]
[1680567630288,2.32492117,1814.7,1814.6,2.76602218]
[1680567630875,2.32492117,1814.7,1814.6,3.59264218]
[1680567630876,0.11800001,1814.7,1814.6,3.59264218]
[1680567631081,0.11000001,1814.7,1814.6,3.9519064]
[1680567632824,0.11000001,1814.7,1814.6,2.76602218]
[1680567633788,0.11000001,1814.7,1814.6,3.04156218]
[1680567634934,0.11000001,1814.7,1814.6,3.59264218]
[1680567635231,0.11000001,1814.7,1814.6,3.72064218]
[1680567635787,0.11000001,1814.7,1814.6,9.52464218]
[1680567636118,0.11000001,1814.7,1814.6,5.3450254]
[1680567636433,0.11000001,1814.7,1814.6,3.72064218]
[1680567639266,0.11000001,1814.7,1814.6,9.75464218]
[1680567639420,0.11000001,1814.7,1814.6,3.95064218]
[1680567639621,0.11000001,1814.7,1814.6,15.38206218]
[1680567639935,0.11000001,1814.7,1814.6,6.95064218]
[1680567640268,0.11000001,1814.7,1814.6,8.9402554]
[1680567640431,0.11000001,1814.7,1814.6,6.72064218]
[1680567641237,0.10646662,1814.7,1814.6,6.72064218]
[1680567641450,0.10646662,1814.7,1814.6,12.52464218]
[1680567641656,0.10646662,1814.7,1814.6,12.75464218]
[1680567641856,0.008,1815.2,1814.7,7.07946422]
[1680567642060,0.008,1815.2,1815.1,2.76602218]
[1680567642255,0.008,1815.2,1815.1,4.69427218]
[1680567642465,0.008,1815.2,1815.1,7.82227218]
[1680567642662,0.11000001,1815.4,1815.1,7.82227218]
[1680567642821,0.11000001,1815.4,1815.3,0.27543]
[1680567643029,0.11000001,1815.4,1815.3,2.76602218]
[1680567644202,0.11000001,1815.4,1815.3,3.04145218]
[1680567644884,0.11800001,1815.4,1815.3,3.04145218]
[1680567645463,0.11800001,1815.4,1815.3,2.76602218]
[1680567645744,1.6282668,1815.4,1815.3,2.76602218]
[1680567645929,1.49282669,1815.4,1815.3,2.76602218]
[1680567646471,1.49282669,1815.4,1815.1,0.008]
[1680567646472,0.82626,1815.4,1815.1,0.008]
[1680567646672,0.27542,1815.4,1814.8,0.128]
[1680567646879,0.27542,1815.4,1814.7,0.134]
[1680567646880,1.21,1815.3,1814.7,0.134]
[1680567647084,1.21,1815.3,1814.8,0.2755]
[1680567647240,1.21,1815.3,1814.8,0.82653]
[1680567647578,0.002,1815.5,1815.0,9.119]
[1680567647735,12.66932117,1815.7,1815.1,6.7159]
[1680567647940,12.67132117,1815.7,1815.2,4.92812]
[1680567648250,12.67132117,1815.7,1815.2,5.06212]
[1680567648743,1.10892117,1815.7,1815.3,5.804]
[1680567648940,1.10692117,1815.7,1815.4,0.82624]
[1680567649272,1.10692117,1815.7,1815.6,0.27539]
[1680567650367,0.11000001,1815.7,1815.6,0.27539]
[1680567650955,0.11000001,1815.7,1815.6,0.95417]
[1680567651155,0.11000001,1815.7,1815.6,0.82617]
[1680567651485,0.11000001,1815.7,1815.6,3.95019218]